{"text_format":"1","workbook":"xlsx","n_sheets":3,"sheets":["Mark All","Moncer","Print"],"not_rendered":{"charts":0,"images":9,"macros":1,"external_links":0,"defined_names":8,"comments":0,"pivot_tables":0},"unopened":[],"bounds":{"document_bytes":16777216,"sheet_cells":100000,"rows_first":2000,"rows_last":500,"rows_between":2000,"halvings":0,"cell_chars":16384,"cell_head_chars":4096},"cells_cut":0,"cells_raw":0,"read":"whole","date_system":"1900"}

{"sheet":"Mark All","index":0,"n_rows":71,"n_cols":187,"rows_kept":71,"cut":false,"hidden":false,"merged":[[5,186,7,186],[5,112,5,122],[5,126,5,136],[5,137,5,147],[6,112,6,116],[6,137,6,141],[5,148,5,158],[6,175,6,180],[6,159,6,163],[6,184,7,184],[6,185,7,185],[6,170,6,174],[5,170,5,180],[6,164,6,169],[6,148,6,152],[6,153,6,158],[1,181,1,183],[6,40,6,45],[6,46,6,50],[5,181,7,181],[5,182,7,182],[5,183,5,185],[6,71,6,75],[6,79,6,83],[6,84,6,89],[6,90,6,94],[6,183,7,183],[6,95,6,100],[6,131,6,136],[4,181,4,186],[5,46,5,55],[5,56,5,65],[4,0,7,0],[4,1,7,1],[4,2,4,12],[4,13,4,23],[4,24,4,34],[6,13,6,17],[6,18,6,23],[6,24,6,28],[6,29,6,34],[5,13,5,23],[5,24,5,34],[6,2,6,6],[6,7,6,12],[5,2,5,12],[5,159,5,169],[5,79,5,89],[5,90,5,100],[5,101,5,111],[6,142,6,147],[6,101,6,105],[6,106,6,111],[6,117,6,122],[6,126,6,130],[5,123,7,123],[5,124,7,124],[5,125,7,125],[4,170,4,180],[4,159,4,169],[4,148,4,158],[4,126,4,136],[4,79,4,125],[4,137,4,147],[4,46,4,78],[4,35,4,45],[5,76,7,76],[5,77,7,77],[5,78,7,78],[6,35,6,39],[5,66,5,75],[6,51,6,55],[6,56,6,60],[6,61,6,65],[6,66,6,70],[5,35,5,45]]}
[1,2,3,4,5,6,7,8,9,10,11,12,13,14,15,16,17,18,19,20,21,22,23,24,25,26,27,28,29,30,31,32,33,34,35,36,37,38,39,40,41,42,43,44,45,46,47,48,49,50,51,52,53,54,55,56,57,58,59,60,61,62,63,64,65,66,67,68,69,70,71,72,73,74,75,76,77,78,79,80,81,82,83,84,85,86,87,88,89,90,91,92,93,94,95,96,97,98,99,100,101,102,103,104,105,106,107,108,109,110,111,112,113,114,115,116,117,118,119,120,121,122,123,124,125,126,127,128,129,130,131,132,133,134,135,136,137,138,139,140,141,142,143,144,145,146,147,148,149,150,151,152,153,154,155,156,157,158,159,160,161,162,163,164,165,166,167,168,169,170,171,172,173,174,175,176,177,178,179,180,181,182,183,184,185,186,187]
[null,"ALL"]
[]
[null,"النهاية العظمى ",20,20,20,40,100,20,20,20,40,200,100]
["الرقم","الاسم","التربية الإسلامية ",null,null,null,null,null,null,null,null,null,null,"العربية لغتي ",null,null,null,null,null,null,null,null,null,null,"اللغة الإنجليزية",null,null,null,null,null,null,null,null,null,null,"الرياضيات",null,null,null,null,null,null,null,null,null,null,"الدراسات الاجتماعية ",null,null,null,null,null,null,null,null,null,null,null,null,null,null,null,null,null,null,null,null,null,null,null,null,null,null,null,null,null,null,null,null,"العلوم",null,null,null,null,null,null,null,null,null,null,null,null,null,null,null,null,null,null,null,null,null,null,null,null,null,null,null,null,null,null,null,null,null,null,null,null,null,null,null,null,null,null,null,null,null,null,"التربية الفنية",null,null,null,null,null,null,null,null,null,null,"التربية الرياضية",null,null,null,null,null,null,null,null,null,null,"الحاسوب المهارات الرقمية ",null,null,null,null,null,null,null,null,null,null,"الثقافة المالية ",null,null,null,null,null,null,null,null,null,null,"اللغة الفرنسية ",null,null,null,null,null,null,null,null,null,null,"الأسماء "]
[null,null,1,null,null,null,null,null,null,null,null,null,null,2,null,null,null,null,null,null,null,null,null,null,3,null,null,null,null,null,null,null,null,null,null,4,null,null,null,null,null,null,null,null,null,null,"التاريخ",null,null,null,null,null,null,null,null,null,"الجغرافيا",null,null,null,null,null,null,null,null,null,"التربية الوطنية و المدنية ",null,null,null,null,null,null,null,null,null,"مجموع فصل اول","مجموع فصل ثاني","معدل","الفيزياء",null,null,null,null,null,null,null,null,null,null,"العلوم الحياتية",null,null,null,null,null,null,null,null,null,null,"الكيمياء",null,null,null,null,null,null,null,null,null,null,"علوم الارض و البيئة ",null,null,null,null,null,null,null,null,null,null,"مجموع الفصل الاول","مجموع الفصل الاول","معدل",12,null,null,null,null,null,null,null,null,null,null,13,null,null,null,null,null,null,null,null,null,null,14,null,null,null,null,null,null,null,null,null,null,15,null,null,null,null,null,null,null,null,null,null,16,null,null,null,null,null,null,null,null,null,null,"الجنـسيـة","مكـان الـولادة","تاريخ الولادة",null,null,"الرقم الوطني"]
[null,null,"فصل اول",null,null,null,null,"فصل ثاني",null,null,null,null,null,"فصل اول",null,null,null,null,"فصل ثاني",null,null,null,null,null,"فصل اول",null,null,null,null,"فصل ثاني",null,null,null,null,null,"فصل اول",null,null,null,null,"فصل ثاني",null,null,null,null,null,"فصل اول",null,null,null,null,"فصل ثاني",null,null,null,null,"فصل اول",null,null,null,null,"فصل ثاني",null,null,null,null,"فصل اول",null,null,null,null,"فصل ثاني",null,null,null,null,null,null,null,"فصل اول",null,null,null,null,"فصل ثاني",null,null,null,null,null,"فصل اول",null,null,null,null,"فصل ثاني",null,null,null,null,null,"فصل اول",null,null,null,null,"فصل ثاني",null,null,null,null,null,"فصل اول",null,null,null,null,"فصل ثاني",null,null,null,null,null,null,null,null,"فصل اول",null,null,null,null,"فصل ثاني",null,null,null,null,null,"فصل اول",null,null,null,null,"فصل ثاني",null,null,null,null,null,"فصل اول",null,null,null,null,"فصل ثاني",null,null,null,null,null,"فصل اول",null,null,null,null,"فصل ثاني",null,null,null,null,null,"فصل اول",null,null,null,null,"فصل ثاني",null,null,null,null,null,null,null,"الـيـوم","الـشـهـر","الــسـنـة"]
[null,null,"التقويم الاول","التقويم الثاني","التقويم الثالث ","التقويم الرابع","مجموع","التقويم الاول","التقويم الثاني","التقويم الثالث ","التقويم الرابع","مجموع","معدل","التقويم الاول","التقويم الثاني","التقويم الثالث ","التقويم الرابع","مجموع","التقويم الاول","التقويم الثاني","التقويم الثالث ","التقويم الرابع","مجموع","معدل","التقويم الاول","التقويم الثاني","التقويم الثالث ","التقويم الرابع","مجموع","التقويم الاول","التقويم الثاني","التقويم الثالث ","التقويم الرابع","مجموع","معدل","التقويم الاول","التقويم الثاني","التقويم الثالث ","التقويم الرابع","مجموع","التقويم الاول","التقويم الثاني","التقويم الثالث ","التقويم الرابع","مجموع","معدل","التقويم الاول","التقويم الثاني","التقويم الثالث ","التقويم الرابع","مجموع","التقويم الاول","التقويم الثاني","التقويم الثالث ","التقويم الرابع","مجموع","التقويم الاول","التقويم الثاني","التقويم الثالث ","التقويم الرابع","مجموع","التقويم الاول","التقويم الثاني","التقويم الثالث ","التقويم الرابع","مجموع","التقويم الاول","التقويم الثاني","التقويم الثالث ","التقويم الرابع","مجموع","التقويم الاول","التقويم الثاني","التقويم الثالث ","التقويم الرابع","مجموع",null,null,null,"التقويم الاول","التقويم الثاني","التقويم الثالث ","التقويم الرابع","مجموع","التقويم الاول","التقويم الثاني","التقويم الثالث ","التقويم الرابع","مجموع","معدل","التقويم الاول","التقويم الثاني","التقويم الثالث ","التقويم الرابع","مجموع","التقويم الاول","التقويم الثاني","التقويم الثالث ","التقويم الرابع","مجموع","معدل","التقويم الاول","التقويم الثاني","التقويم الثالث ","التقويم الرابع","مجموع","التقويم الاول","التقويم الثاني","التقويم الثالث ","التقويم الرابع","مجموع","معدل","التقويم الاول","التقويم الثاني","التقويم الثالث ","التقويم الرابع","مجموع","التقويم الاول","التقويم الثاني","التقويم الثالث ","التقويم الرابع","مجموع","معدل",null,null,null,"التقويم الاول","التقويم الثاني","التقويم الثالث ","التقويم الرابع","مجموع","التقويم الاول","التقويم الثاني","التقويم الثالث ","التقويم الرابع","مجموع","معدل","التقويم الاول","التقويم الثاني","التقويم الثالث ","التقويم الرابع","مجموع","التقويم الاول","التقويم الثاني","التقويم الثالث ","التقويم الرابع","مجموع","معدل","التقويم الاول","التقويم الثاني","التقويم الثالث ","التقويم الرابع","مجموع","التقويم الاول","التقويم الثاني","التقويم الثالث ","التقويم الرابع","مجموع","معدل","التقويم الاول","التقويم الثاني","التقويم الثالث ","التقويم الرابع","مجموع","التقويم الاول","التقويم الثاني","التقويم الثالث ","التقويم الرابع","مجموع","معدل","التقويم الاول","التقويم الثاني","التقويم الثالث ","التقويم الرابع","مجموع","التقويم الاول","التقويم الثاني","التقويم الثالث ","التقويم الرابع","مجموع","معدل"]
[1,"محمد",20,20,20,40,{"$f":"IF(COUNT(C9:F9)>3,SUM(C9:F9),\"\")","v":100},14,36,47,40,{"$f":"IF(COUNT(H9:K9)>3,SUM(H9:K9),\"\")","v":137},{"$f":"IF(COUNT(G9,L9)>1,ROUND((G9+L9)/2,0),\"\")","v":119},15,16,12,14,{"$f":"IF(COUNT(N9:Q9)>3,SUM(N9:Q9),\"\")","v":57},20,15,14,13,{"$f":"IF(COUNT(S9:V9)>3,SUM(S9:V9),\"\")","v":62},{"$f":"IF(COUNT(R9,W9)>1,ROUND((R9+W9)/2,0),\"\")","v":60},15,14,12,11,{"$f":"IF(COUNT(Y9:AB9)>3,SUM(Y9:AB9),\"\")","v":52},11,11,12,15,{"$f":"IF(COUNT(AD9:AG9)>3,SUM(AD9:AG9),\"\")","v":49},{"$f":"IF(COUNT(AC9,AH9)>1,ROUND((AC9+AH9)/2,0),\"\")","v":51},12,18,12,15,{"$f":"IF(COUNT(AJ9:AM9)>3,SUM(AJ9:AM9),\"\")","v":57},16,20,15,18,{"$f":"IF(COUNT(AO9:AR9)>3,SUM(AO9:AR9),\"\")","v":69},{"$f":"IF(COUNT(AN9,AS9)>1,ROUND((AN9+AS9)/2,0),\"\")","v":63},12,15,18,13,{"$f":"IF(COUNT(AU9:AX9)>3,SUM(AU9:AX9),\"\")","v":58},18,20,15,11,{"$f":"IF(COUNT(AZ9:BC9)>3,SUM(AZ9:BC9),\"\")","v":64},16,19,20,22,{"$f":"IF(COUNT(BE9:BH9)>3,SUM(BE9:BH9),\"\")","v":77},16,18,20,15,{"$f":"IF(COUNT(BJ9:BM9)>3,SUM(BJ9:BM9),\"\")","v":69},10,15,12,18,{"$f":"IF(COUNT(BO9:BR9)>3,SUM(BO9:BR9),\"\")","v":55},14,20,15,14,{"$f":"IF(COUNT(BT9:BW9)>3,SUM(BT9:BW9),\"\")","v":63},{"$f":"IFERROR(ROUND(((AY9+BI9+BS9)*2)/3,0),\"\")","v":127},{"$f":"IFERROR(ROUND(((BD9+BN9+BX9)*2)/3,0),\"\")","v":131},{"$f":"IFERROR(ROUND((BY9+BZ9)/2,0),\"\")","v":129},14,12,16,18,{"$f":"IF(COUNT(CB9:CE9)>3,SUM(CB9:CE9),\"\")","v":60},23,11,12,15,{"$f":"IF(COUNT(CG9:CJ9)>3,SUM(CG9:CJ9),\"\")","v":61},{"$f":"IF(COUNT(CF9,CK9)>1,ROUND((CF9+CK9)/2,0),\"\")","v":61},18,13,15,12,{"$f":"IF(COUNT(CM9:CP9)>3,SUM(CM9:CP9),\"\")","v":58},20,11,15,10,{"$f":"IF(COUNT(CR9:CU9)>3,SUM(CR9:CU9),\"\")","v":56},{"$f":"IF(COUNT(CQ9,CV9)>1,ROUND((CQ9+CV9)/2,0),\"\")","v":57},15,18,17,20,{"$f":"IF(COUNT(CX9:DA9)>3,SUM(CX9:DA9),\"\")","v":70},14,13,15,11,{"$f":"IF(COUNT(DC9:DF9)>3,SUM(DC9:DF9),\"\")","v":53},{"$f":"IF(COUNT(DB9,DG9)>1,ROUND((DB9+DG9)/2,0),\"\")","v":62},15,19,22,20,{"$f":"IF(COUNT(DI9:DL9)>3,SUM(DI9:DL9),\"\")","v":76},17,10,16,12,{"$f":"IF(COUNT(DN9:DQ9)>3,SUM(DN9:DQ9),\"\")","v":55},{"$f":"IF(COUNT(DM9,DR9)>1,ROUND((DM9+DR9)/2,0),\"\")","v":66},{"$f":"IFERROR(ROUND((CF9+CQ9+DB9+DM9),0),\"\")","v":264},{"$f":"IFERROR(ROUND((CK9+CV9+DG9+DR9),0),\"\")","v":225},{"$f":"IFERROR(ROUND((CL9+CW9+DH9+DS9),0),\"\")","v":246},18,20,15,11,{"$f":"IF(COUNT(DW9:DZ9)>3,SUM(DW9:DZ9),\"\")","v":64},19,20,14,16,{"$f":"IF(COUNT(EB9:EE9)>3,SUM(EB9:EE9),\"\")","v":69},{"$f":"IF(COUNT(EA9,EF9)>1,ROUND((EA9+EF9)/2,0),\"\")","v":67},20,21,15,18,{"$f":"IF(COUNT(EH9:EK9)>3,SUM(EH9:EK9),\"\")","v":74},16,20,14,12,{"$f":"IF(COUNT(EM9:EP9)>3,SUM(EM9:EP9),\"\")","v":62},{"$f":"IF(COUNT(EL9,EQ9)>1,ROUND((EL9+EQ9)/2,0),\"\")","v":68},19,14,11,12,{"$f":"IF(COUNT(ES9:EV9)>3,SUM(ES9:EV9),\"\")","v":56},20,20,15,15,{"$f":"IF(COUNT(EX9:FA9)>3,SUM(EX9:FA9),\"\")","v":70},{"$f":"IF(COUNT(EW9,FB9)>1,ROUND((EW9+FB9)/2,0),\"\")","v":63},22,18,18,20,{"$f":"IF(COUNT(FD9:FG9)>3,SUM(FD9:FG9),\"\")","v":78},17,23,20,15,{"$f":"IF(COUNT(FI9:FL9)>3,SUM(FI9:FL9),\"\")","v":75},{"$f":"IF(COUNT(FH9,FM9)>1,ROUND((FH9+FM9)/2,0),\"\")","v":77},18,16,14,10,{"$f":"IF(COUNT(FO9:FR9)>3,SUM(FO9:FR9),\"\")","v":58},11,15,40,20,{"$f":"IF(COUNT(FT9:FW9)>3,SUM(FT9:FW9),\"\")","v":86},{"$f":"IF(COUNT(FS9,FX9)>1,ROUND((FS9+FX9)/2,0),\"\")","v":72}]
[2,"بدر",10,15,16,34,75,12,17,20,40,{"$f":"IF(COUNT(H10:K10)>3,SUM(H10:K10),\"\")","v":89},{"$f":"IF(COUNT(G10,L10)>1,ROUND((G10+L10)/2,0),\"\")","v":82},22,16,25,17,{"$f":"IF(COUNT(N10:Q10)>3,SUM(N10:Q10),\"\")","v":80},22,10,15,17,64,72,30,25,18,24,97,19,10,16,18,{"$f":"IF(COUNT(AD10:AG10)>3,SUM(AD10:AG10),\"\")","v":63},80,18,20,15,18,{"$f":"IF(COUNT(AJ10:AM10)>3,SUM(AJ10:AM10),\"\")","v":71},12,22,19,23,{"$f":"IF(COUNT(AO10:AR10)>3,SUM(AO10:AR10),\"\")","v":76},{"$f":"IF(COUNT(AN10,AS10)>1,ROUND((AN10+AS10)/2,0),\"\")","v":74},17,12,20,18,{"$f":"IF(COUNT(AU10:AX10)>3,SUM(AU10:AX10),\"\")","v":67},20,11,18,15,{"$f":"IF(COUNT(AZ10:BC10)>3,SUM(AZ10:BC10),\"\")","v":64},17,18,15,11,{"$f":"IF(COUNT(BE10:BH10)>3,SUM(BE10:BH10),\"\")","v":61},18,14,10,23,{"$f":"IF(COUNT(BJ10:BM10)>3,SUM(BJ10:BM10),\"\")","v":65},14,19,17,20,{"$f":"IF(COUNT(BO10:BR10)>3,SUM(BO10:BR10),\"\")","v":70},23,30,14,14,{"$f":"IF(COUNT(BT10:BW10)>3,SUM(BT10:BW10),\"\")","v":81},{"$f":"IFERROR(ROUND(((AY10+BI10+BS10)*2)/3,0),\"\")","v":132},{"$f":"IFERROR(ROUND(((BD10+BN10+BX10)*2)/3,0),\"\")","v":140},{"$f":"IFERROR(ROUND((BY10+BZ10)/2,0),\"\")","v":136},11,15,10,22,{"$f":"IF(COUNT(CB10:CE10)>3,SUM(CB10:CE10),\"\")","v":58},20,18,16,10,{"$f":"IF(COUNT(CG10:CJ10)>3,SUM(CG10:CJ10),\"\")","v":64},{"$f":"IF(COUNT(CF10,CK10)>1,ROUND((CF10+CK10)/2,0),\"\")","v":61},19,23,20,18,{"$f":"IF(COUNT(CM10:CP10)>3,SUM(CM10:CP10),\"\")","v":80},11,20,19,23,{"$f":"IF(COUNT(CR10:CU10)>3,SUM(CR10:CU10),\"\")","v":73},{"$f":"IF(COUNT(CQ10,CV10)>1,ROUND((CQ10+CV10)/2,0),\"\")","v":77},22,14,18,12,{"$f":"IF(COUNT(CX10:DA10)>3,SUM(CX10:DA10),\"\")","v":66},10,15,18,17,{"$f":"IF(COUNT(DC10:DF10)>3,SUM(DC10:DF10),\"\")","v":60},{"$f":"IF(COUNT(DB10,DG10)>1,ROUND((DB10+DG10)/2,0),\"\")","v":63},10,21,20,23,{"$f":"IF(COUNT(DI10:DL10)>3,SUM(DI10:DL10),\"\")","v":74},14,11,19,20,{"$f":"IF(COUNT(DN10:DQ10)>3,SUM(DN10:DQ10),\"\")","v":64},{"$f":"IF(COUNT(DM10,DR10)>1,ROUND((DM10+DR10)/2,0),\"\")","v":69},{"$f":"IFERROR(ROUND((CF10+CQ10+DB10+DM10),0),\"\")","v":278},{"$f":"IFERROR(ROUND((CK10+CV10+DG10+DR10),0),\"\")","v":261},{"$f":"IFERROR(ROUND((CL10+CW10+DH10+DS10),0),\"\")","v":270},14,18,11,10,{"$f":"IF(COUNT(DW10:DZ10)>3,SUM(DW10:DZ10),\"\")","v":53},23,18,12,19,{"$f":"IF(COUNT(EB10:EE10)>3,SUM(EB10:EE10),\"\")","v":72},{"$f":"IF(COUNT(EA10,EF10)>1,ROUND((EA10+EF10)/2,0),\"\")","v":63},14,40,25,20,{"$f":"IF(COUNT(EH10:EK10)>3,SUM(EH10:EK10),\"\")","v":99},23,42,44,45,{"$f":"IF(COUNT(EM10:EP10)>3,SUM(EM10:EP10),\"\")","v":154},{"$f":"IF(COUNT(EL10,EQ10)>1,ROUND((EL10+EQ10)/2,0),\"\")","v":127},11,15,10,19,{"$f":"IF(COUNT(ES10:EV10)>3,SUM(ES10:EV10),\"\")","v":55},22,16,10,10,{"$f":"IF(COUNT(EX10:FA10)>3,SUM(EX10:FA10),\"\")","v":58},{"$f":"IF(COUNT(EW10,FB10)>1,ROUND((EW10+FB10)/2,0),\"\")","v":57},40,30,15,22,{"$f":"IF(COUNT(FD10:FG10)>3,SUM(FD10:FG10),\"\")","v":107},19,28,22,41,{"$f":"IF(COUNT(FI10:FL10)>3,SUM(FI10:FL10),\"\")","v":110},{"$f":"IF(COUNT(FH10,FM10)>1,ROUND((FH10+FM10)/2,0),\"\")","v":109},10,18,44,17,{"$f":"IF(COUNT(FO10:FR10)>3,SUM(FO10:FR10),\"\")","v":89},12,22,38,12,{"$f":"IF(COUNT(FT10:FW10)>3,SUM(FT10:FW10),\"\")","v":84},{"$f":"IF(COUNT(FS10,FX10)>1,ROUND((FS10+FX10)/2,0),\"\")","v":87}]
[3,"كمال",35,10,62,53,160,16,74,44,25,159,160,28,10,17,53,108,41,74,71,33,{"$f":"IF(COUNT(S11:V11)>3,SUM(S11:V11),\"\")","v":219},164,55,12,14,40,121,16,18,24,27,85,103,23,22,18,23,{"$f":"IF(COUNT(AJ11:AM11)>3,SUM(AJ11:AM11),\"\")","v":86},47,14,37,29,127,107,null,null,null,null,"",null,null,null,null,"",null,null,null,null,"",null,null,null,null,"",null,null,null,null,"",null,null,null,null,"","",{"$f":"IFERROR(ROUND(((BD11+BN11+BX11)*2)/3,0),\"\")","v":""},{"$f":"IFERROR(ROUND((BY11+BZ11)/2,0),\"\")","v":""},null,null,null,null,"",null,null,null,null,"","",null,null,null,null,"",null,null,null,null,{"$f":"IF(COUNT(CR11:CU11)>3,SUM(CR11:CU11),\"\")","v":""},{"$f":"IF(COUNT(CQ11,CV11)>1,ROUND((CQ11+CV11)/2,0),\"\")","v":""},null,null,null,null,"",null,null,null,null,{"$f":"IF(COUNT(DC11:DF11)>3,SUM(DC11:DF11),\"\")","v":""},{"$f":"IF(COUNT(DB11,DG11)>1,ROUND((DB11+DG11)/2,0),\"\")","v":""},null,null,null,null,"",null,null,null,null,"","",{"$f":"IFERROR(ROUND((CF11+CQ11+DB11+DM11),0),\"\")","v":""},{"$f":"IFERROR(ROUND((CK11+CV11+DG11+DR11),0),\"\")","v":""},{"$f":"IFERROR(ROUND((CL11+CW11+DH11+DS11),0),\"\")","v":""},null,null,null,null,"",null,null,null,null,"","",null,null,null,null,"",null,null,null,null,"","",null,null,null,null,{"$f":"IF(COUNT(ES11:EV11)>3,SUM(ES11:EV11),\"\")","v":""},null,null,null,null,{"$f":"IF(COUNT(EX11:FA11)>3,SUM(EX11:FA11),\"\")","v":""},{"$f":"IF(COUNT(EW11,FB11)>1,ROUND((EW11+FB11)/2,0),\"\")","v":""}]
[4,"يوسف",45,23,18,44,130,48,63,33,85,229,180,47,23,22,44,136,36,29,48,90,{"$f":"IF(COUNT(S12:V12)>3,SUM(S12:V12),\"\")","v":203},{"$f":"IF(COUNT(R12,W12)>1,ROUND((R12+W12)/2,0),\"\")","v":170},48,23,18,21,110,29,15,32,42,118,114,63,40,15,24,142,52,60,33,28,173,158,null,null,null,null,"",null,null,null,null,"",null,null,null,null,"",null,null,null,null,"",null,null,null,null,"",null,null,null,null,"","","","",null,null,null,null,"",null,null,null,null,"","",null,null,null,null,"",null,null,null,null,"","",null,null,null,null,"",null,null,null,null,"","",null,null,null,null,"",null,null,null,null,"","","","","",null,null,null,null,"",null,null,null,null,"","",null,null,null,null,"",null,null,null,null,"","",null,null,null,null,"",null,null,null,null,"",""]
[5,null,null,null,null,null,"",null,null,null,null,"","",null,null,null,null,"",null,null,null,null,{"$f":"IF(COUNT(S13:V13)>3,SUM(S13:V13),\"\")","v":""},"",null,null,null,null,"",null,null,null,null,"","",null,null,null,null,"",null,null,null,null,"","",null,null,null,null,"",null,null,null,null,"",null,null,null,null,"",null,null,null,null,"",null,null,null,null,"",null,null,null,null,"","","","",null,null,null,null,"",null,null,null,null,"","",null,null,null,null,"",null,null,null,null,"","",null,null,null,null,"",null,null,null,null,"","",null,null,null,null,"",null,null,null,null,"","","","","",null,null,null,null,"",null,null,null,null,"","",null,null,null,null,"",null,null,null,null,"","",null,null,null,null,"",null,null,null,null,"",""]
[6,null,null,null,null,null,"",null,null,null,null,"","",null,null,null,null,"",null,null,null,null,"","",null,null,null,null,"",null,null,null,null,"","",null,null,null,null,"",null,null,null,null,"","",null,null,null,null,"",null,null,null,null,"",null,null,null,null,"",null,null,null,null,"",null,null,null,null,"",null,null,null,null,"","","","",null,null,null,null,"",null,null,null,null,"","",null,null,null,null,"",null,null,null,null,"","",null,null,null,null,"",null,null,null,null,"","",null,null,null,null,"",null,null,null,null,"","","","","",null,null,null,null,"",null,null,null,null,"","",null,null,null,null,"",null,null,null,null,"","",null,null,null,null,"",null,null,null,null,"",""]
[7,null,null,null,null,null,"",null,null,null,null,"","",null,null,null,null,"",null,null,null,null,"","",null,null,null,null,"",null,null,null,null,"","",null,null,null,null,"",null,null,null,null,"","",null,null,null,null,"",null,null,null,null,"",null,null,null,null,"",null,null,null,null,"",null,null,null,null,"",null,null,null,null,"","","","",null,null,null,null,"",null,null,null,null,"","",null,null,null,null,"",null,null,null,null,"","",null,null,null,null,"",null,null,null,null,"","",null,null,null,null,"",null,null,null,null,"","","","","",null,null,null,null,"",null,null,null,null,"","",null,null,null,null,"",null,null,null,null,"","",null,null,null,null,"",null,null,null,null,"",""]
[8,null,null,null,null,null,"",null,null,null,null,"","",null,null,null,null,"",null,null,null,null,"","",null,null,null,null,"",null,null,null,null,"","",null,null,null,null,"",null,null,null,null,"","",null,null,null,null,"",null,null,null,null,"",null,null,null,null,"",null,null,null,null,"",null,null,null,null,"",null,null,null,null,"","","","",null,null,null,null,"",null,null,null,null,"","",null,null,null,null,"",null,null,null,null,"","",null,null,null,null,"",null,null,null,null,"","",null,null,null,null,"",null,null,null,null,"","","","","",null,null,null,null,"",null,null,null,null,"","",null,null,null,null,"",null,null,null,null,"","",null,null,null,null,"",null,null,null,null,"",""]
[9,null,null,null,null,null,"",null,null,null,null,"","",null,null,null,null,"",null,null,null,null,"","",null,null,null,null,"",null,null,null,null,"","",null,null,null,null,"",null,null,null,null,"","",null,null,null,null,"",null,null,null,null,"",null,null,null,null,"",null,null,null,null,"",null,null,null,null,"",null,null,null,null,"","","","",null,null,null,null,"",null,null,null,null,"","",null,null,null,null,"",null,null,null,null,"","",null,null,null,null,"",null,null,null,null,"","",null,null,null,null,"",null,null,null,null,"","","","","",null,null,null,null,"",null,null,null,null,"","",null,null,null,null,"",null,null,null,null,"","",null,null,null,null,"",null,null,null,null,"",""]
[10,null,null,null,null,null,"",null,null,null,null,"","",null,null,null,null,"",null,null,null,null,"","",null,null,null,null,"",null,null,null,null,"","",null,null,null,null,"",null,null,null,null,"","",null,null,null,null,"",null,null,null,null,"",null,null,null,null,"",null,null,null,null,"",null,null,null,null,"",null,null,null,null,"","","","",null,null,null,null,"",null,null,null,null,"","",null,null,null,null,"",null,null,null,null,"","",null,null,null,null,"",null,null,null,null,"","",null,null,null,null,"",null,null,null,null,"","","","","",null,null,null,null,"",null,null,null,null,"","",null,null,null,null,"",null,null,null,null,"","",null,null,null,null,"",null,null,null,null,"",""]
[11,null,null,null,null,null,"",null,null,null,null,"","",null,null,null,null,"",null,null,null,null,"","",null,null,null,null,"",null,null,null,null,"","",null,null,null,null,"",null,null,null,null,"","",null,null,null,null,"",null,null,null,null,"",null,null,null,null,"",null,null,null,null,"",null,null,null,null,"",null,null,null,null,"","","","",null,null,null,null,"",null,null,null,null,"","",null,null,null,null,"",null,null,null,null,"","",null,null,null,null,"",null,null,null,null,"","",null,null,null,null,"",null,null,null,null,"","","","","",null,null,null,null,"",null,null,null,null,"","",null,null,null,null,"",null,null,null,null,"","",null,null,null,null,"",null,null,null,null,"",""]
[12,null,null,null,null,null,"",null,null,null,null,"","",null,null,null,null,"",null,null,null,null,"","",null,null,null,null,"",null,null,null,null,"","",null,null,null,null,"",null,null,null,null,"","",null,null,null,null,"",null,null,null,null,"",null,null,null,null,"",null,null,null,null,"",null,null,null,null,"",null,null,null,null,"","","","",null,null,null,null,"",null,null,null,null,"","",null,null,null,null,"",null,null,null,null,"","",null,null,null,null,"",null,null,null,null,"","",null,null,null,null,"",null,null,null,null,"","","","","",null,null,null,null,"",null,null,null,null,"","",null,null,null,null,"",null,null,null,null,"","",null,null,null,null,"",null,null,null,null,"",""]
[13,null,null,null,null,null,"",null,null,null,null,"","",null,null,null,null,"",null,null,null,null,"","",null,null,null,null,"",null,null,null,null,"","",null,null,null,null,"",null,null,null,null,"","",null,null,null,null,"",null,null,null,null,"",null,null,null,null,"",null,null,null,null,"",null,null,null,null,"",null,null,null,null,"","","","",null,null,null,null,"",null,null,null,null,"","",null,null,null,null,"",null,null,null,null,"","",null,null,null,null,"",null,null,null,null,"","",null,null,null,null,"",null,null,null,null,"","","","","",null,null,null,null,"",null,null,null,null,"","",null,null,null,null,"",null,null,null,null,"","",null,null,null,null,"",null,null,null,null,"",""]
[14,null,null,null,null,null,"",null,null,null,null,"","",null,null,null,null,"",null,null,null,null,"","",null,null,null,null,"",null,null,null,null,"","",null,null,null,null,"",null,null,null,null,"","",null,null,null,null,"",null,null,null,null,"",null,null,null,null,"",null,null,null,null,"",null,null,null,null,"",null,null,null,null,"","","","",null,null,null,null,"",null,null,null,null,"","",null,null,null,null,"",null,null,null,null,"","",null,null,null,null,"",null,null,null,null,"","",null,null,null,null,"",null,null,null,null,"","","","","",null,null,null,null,"",null,null,null,null,"","",null,null,null,null,"",null,null,null,null,"","",null,null,null,null,"",null,null,null,null,"",""]
[15,null,null,null,null,null,"",null,null,null,null,"","",null,null,null,null,"",null,null,null,null,"","",null,null,null,null,"",null,null,null,null,"","",null,null,null,null,"",null,null,null,null,"","",null,null,null,null,"",null,null,null,null,"",null,null,null,null,"",null,null,null,null,"",null,null,null,null,"",null,null,null,null,"","","","",null,null,null,null,"",null,null,null,null,"","",null,null,null,null,"",null,null,null,null,"","",null,null,null,null,"",null,null,null,null,"","",null,null,null,null,"",null,null,null,null,"","","","","",null,null,null,null,"",null,null,null,null,"","",null,null,null,null,"",null,null,null,null,"","",null,null,null,null,"",null,null,null,null,"",""]
[16,null,null,null,null,null,"",null,null,null,null,"","",null,null,null,null,"",null,null,null,null,"","",null,null,null,null,"",null,null,null,null,"","",null,null,null,null,"",null,null,null,null,"","",null,null,null,null,"",null,null,null,null,"",null,null,null,null,"",null,null,null,null,"",null,null,null,null,"",null,null,null,null,"","","","",null,null,null,null,"",null,null,null,null,"","",null,null,null,null,"",null,null,null,null,"","",null,null,null,null,"",null,null,null,null,"","",null,null,null,null,"",null,null,null,null,"","","","","",null,null,null,null,"",null,null,null,null,"","",null,null,null,null,"",null,null,null,null,"","",null,null,null,null,"",null,null,null,null,"",""]
[17,null,null,null,null,null,"",null,null,null,null,"","",null,null,null,null,"",null,null,null,null,"","",null,null,null,null,"",null,null,null,null,"","",null,null,null,null,"",null,null,null,null,"","",null,null,null,null,"",null,null,null,null,"",null,null,null,null,"",null,null,null,null,"",null,null,null,null,"",null,null,null,null,"","","","",null,null,null,null,"",null,null,null,null,"","",null,null,null,null,"",null,null,null,null,"","",null,null,null,null,"",null,null,null,null,"","",null,null,null,null,"",null,null,null,null,"","","","","",null,null,null,null,"",null,null,null,null,"","",null,null,null,null,"",null,null,null,null,"","",null,null,null,null,"",null,null,null,null,"",""]
[18,null,null,null,null,null,"",null,null,null,null,"","",null,null,null,null,"",null,null,null,null,"","",null,null,null,null,"",null,null,null,null,"","",null,null,null,null,"",null,null,null,null,"","",null,null,null,null,"",null,null,null,null,"",null,null,null,null,"",null,null,null,null,"",null,null,null,null,"",null,null,null,null,"","","","",null,null,null,null,"",null,null,null,null,"","",null,null,null,null,"",null,null,null,null,"","",null,null,null,null,"",null,null,null,null,"","",null,null,null,null,"",null,null,null,null,"","","","","",null,null,null,null,"",null,null,null,null,"","",null,null,null,null,"",null,null,null,null,"","",null,null,null,null,"",null,null,null,null,"",""]
[19,null,null,null,null,null,"",null,null,null,null,"","",null,null,null,null,"",null,null,null,null,"","",null,null,null,null,"",null,null,null,null,"","",null,null,null,null,"",null,null,null,null,"","",null,null,null,null,"",null,null,null,null,"",null,null,null,null,"",null,null,null,null,"",null,null,null,null,"",null,null,null,null,"","","","",null,null,null,null,"",null,null,null,null,"","",null,null,null,null,"",null,null,null,null,"","",null,null,null,null,"",null,null,null,null,"","",null,null,null,null,"",null,null,null,null,"","","","","",null,null,null,null,"",null,null,null,null,"","",null,null,null,null,"",null,null,null,null,"","",null,null,null,null,"",null,null,null,null,"",""]
[20,null,null,null,null,null,"",null,null,null,null,"","",null,null,null,null,"",null,null,null,null,"","",null,null,null,null,"",null,null,null,null,"","",null,null,null,null,"",null,null,null,null,"","",null,null,null,null,"",null,null,null,null,"",null,null,null,null,"",null,null,null,null,"",null,null,null,null,"",null,null,null,null,"","","","",null,null,null,null,"",null,null,null,null,"","",null,null,null,null,"",null,null,null,null,"","",null,null,null,null,"",null,null,null,null,"","",null,null,null,null,"",null,null,null,null,"","","","","",null,null,null,null,"",null,null,null,null,"","",null,null,null,null,"",null,null,null,null,"","",null,null,null,null,"",null,null,null,null,"",""]
[21,null,null,null,null,null,"",null,null,null,null,"","",null,null,null,null,"",null,null,null,null,"","",null,null,null,null,"",null,null,null,null,"","",null,null,null,null,"",null,null,null,null,"","",null,null,null,null,"",null,null,null,null,"",null,null,null,null,"",null,null,null,null,"",null,null,null,null,"",null,null,null,null,"","","","",null,null,null,null,"",null,null,null,null,"","",null,null,null,null,"",null,null,null,null,"","",null,null,null,null,"",null,null,null,null,"","",null,null,null,null,"",null,null,null,null,"","","","","",null,null,null,null,"",null,null,null,null,"","",null,null,null,null,"",null,null,null,null,"","",null,null,null,null,"",null,null,null,null,"",""]
[22,null,null,null,null,null,"",null,null,null,null,"","",null,null,null,null,"",null,null,null,null,"","",null,null,null,null,"",null,null,null,null,"","",null,null,null,null,"",null,null,null,null,"","",null,null,null,null,"",null,null,null,null,"",null,null,null,null,"",null,null,null,null,"",null,null,null,null,"",null,null,null,null,"","","","",null,null,null,null,"",null,null,null,null,"","",null,null,null,null,"",null,null,null,null,"","",null,null,null,null,"",null,null,null,null,"","",null,null,null,null,"",null,null,null,null,"","","","","",null,null,null,null,"",null,null,null,null,"","",null,null,null,null,"",null,null,null,null,"","",null,null,null,null,"",null,null,null,null,"",""]
[23,null,null,null,null,null,"",null,null,null,null,"","",null,null,null,null,"",null,null,null,null,"","",null,null,null,null,"",null,null,null,null,"","",null,null,null,null,"",null,null,null,null,"","",null,null,null,null,"",null,null,null,null,"",null,null,null,null,"",null,null,null,null,"",null,null,null,null,"",null,null,null,null,"","","","",null,null,null,null,"",null,null,null,null,"","",null,null,null,null,"",null,null,null,null,"","",null,null,null,null,"",null,null,null,null,"","",null,null,null,null,"",null,null,null,null,"","","","","",null,null,null,null,"",null,null,null,null,"","",null,null,null,null,"",null,null,null,null,"","",null,null,null,null,"",null,null,null,null,"",""]
[24,null,null,null,null,null,"",null,null,null,null,"","",null,null,null,null,"",null,null,null,null,"","",null,null,null,null,"",null,null,null,null,"","",null,null,null,null,"",null,null,null,null,"","",null,null,null,null,"",null,null,null,null,"",null,null,null,null,"",null,null,null,null,"",null,null,null,null,"",null,null,null,null,"","","","",null,null,null,null,"",null,null,null,null,"","",null,null,null,null,"",null,null,null,null,"","",null,null,null,null,"",null,null,null,null,"","",null,null,null,null,"",null,null,null,null,"","","","","",null,null,null,null,"",null,null,null,null,"","",null,null,null,null,"",null,null,null,null,"","",null,null,null,null,"",null,null,null,null,"",""]
[25,null,null,null,null,null,"",null,null,null,null,"","",null,null,null,null,"",null,null,null,null,"","",null,null,null,null,"",null,null,null,null,"","",null,null,null,null,"",null,null,null,null,"","",null,null,null,null,"",null,null,null,null,"",null,null,null,null,"",null,null,null,null,"",null,null,null,null,"",null,null,null,null,"","","","",null,null,null,null,"",null,null,null,null,"","",null,null,null,null,"",null,null,null,null,"","",null,null,null,null,"",null,null,null,null,"","",null,null,null,null,"",null,null,null,null,"","","","","",null,null,null,null,"",null,null,null,null,"","",null,null,null,null,"",null,null,null,null,"","",null,null,null,null,"",null,null,null,null,"",""]
[26,null,null,null,null,null,"",null,null,null,null,"","",null,null,null,null,"",null,null,null,null,"","",null,null,null,null,"",null,null,null,null,"","",null,null,null,null,"",null,null,null,null,"","",null,null,null,null,"",null,null,null,null,"",null,null,null,null,"",null,null,null,null,"",null,null,null,null,"",null,null,null,null,"","","","",null,null,null,null,"",null,null,null,null,"","",null,null,null,null,"",null,null,null,null,"","",null,null,null,null,"",null,null,null,null,"","",null,null,null,null,"",null,null,null,null,"","","","","",null,null,null,null,"",null,null,null,null,"","",null,null,null,null,"",null,null,null,null,"","",null,null,null,null,"",null,null,null,null,"",""]
[27,null,null,null,null,null,"",null,null,null,null,"","",null,null,null,null,"",null,null,null,null,"","",null,null,null,null,"",null,null,null,null,"","",null,null,null,null,"",null,null,null,null,"","",null,null,null,null,"",null,null,null,null,"",null,null,null,null,"",null,null,null,null,"",null,null,null,null,"",null,null,null,null,"","","","",null,null,null,null,"",null,null,null,null,"","",null,null,null,null,"",null,null,null,null,"","",null,null,null,null,"",null,null,null,null,"","",null,null,null,null,"",null,null,null,null,"","","","","",null,null,null,null,"",null,null,null,null,"","",null,null,null,null,"",null,null,null,null,"","",null,null,null,null,"",null,null,null,null,"",""]
[28,null,null,null,null,null,"",null,null,null,null,"","",null,null,null,null,"",null,null,null,null,"","",null,null,null,null,"",null,null,null,null,"","",null,null,null,null,"",null,null,null,null,"","",null,null,null,null,"",null,null,null,null,"",null,null,null,null,"",null,null,null,null,"",null,null,null,null,"",null,null,null,null,"","","","",null,null,null,null,"",null,null,null,null,"","",null,null,null,null,"",null,null,null,null,"","",null,null,null,null,"",null,null,null,null,"","",null,null,null,null,"",null,null,null,null,"","","","","",null,null,null,null,"",null,null,null,null,"","",null,null,null,null,"",null,null,null,null,"","",null,null,null,null,"",null,null,null,null,"",""]
[29,null,null,null,null,null,"",null,null,null,null,"","",null,null,null,null,"",null,null,null,null,"","",null,null,null,null,"",null,null,null,null,"","",null,null,null,null,"",null,null,null,null,"","",null,null,null,null,"",null,null,null,null,"",null,null,null,null,"",null,null,null,null,"",null,null,null,null,"",null,null,null,null,"","","","",null,null,null,null,"",null,null,null,null,"","",null,null,null,null,"",null,null,null,null,"","",null,null,null,null,"",null,null,null,null,"","",null,null,null,null,"",null,null,null,null,"","","","","",null,null,null,null,"",null,null,null,null,"","",null,null,null,null,"",null,null,null,null,"","",null,null,null,null,"",null,null,null,null,"",""]
[30,null,null,null,null,null,"",null,null,null,null,"","",null,null,null,null,"",null,null,null,null,"","",null,null,null,null,"",null,null,null,null,"","",null,null,null,null,"",null,null,null,null,"","",null,null,null,null,"",null,null,null,null,"",null,null,null,null,"",null,null,null,null,"",null,null,null,null,"",null,null,null,null,"","","","",null,null,null,null,"",null,null,null,null,"","",null,null,null,null,"",null,null,null,null,"","",null,null,null,null,"",null,null,null,null,"","",null,null,null,null,"",null,null,null,null,"","","","","",null,null,null,null,"",null,null,null,null,"","",null,null,null,null,"",null,null,null,null,"","",null,null,null,null,"",null,null,null,null,"",""]
[31,null,null,null,null,null,"",null,null,null,null,"","",null,null,null,null,"",null,null,null,null,"","",null,null,null,null,"",null,null,null,null,"","",null,null,null,null,"",null,null,null,null,"","",null,null,null,null,"",null,null,null,null,"",null,null,null,null,"",null,null,null,null,"",null,null,null,null,"",null,null,null,null,"","","","",null,null,null,null,"",null,null,null,null,"","",null,null,null,null,"",null,null,null,null,"","",null,null,null,null,"",null,null,null,null,"","",null,null,null,null,"",null,null,null,null,"","","","","",null,null,null,null,"",null,null,null,null,"","",null,null,null,null,"",null,null,null,null,"","",null,null,null,null,"",null,null,null,null,"",""]
[32,null,null,null,null,null,"",null,null,null,null,"","",null,null,null,null,"",null,null,null,null,"","",null,null,null,null,"",null,null,null,null,"","",null,null,null,null,"",null,null,null,null,"","",null,null,null,null,"",null,null,null,null,"",null,null,null,null,"",null,null,null,null,"",null,null,null,null,"",null,null,null,null,"","","","",null,null,null,null,"",null,null,null,null,"","",null,null,null,null,"",null,null,null,null,"","",null,null,null,null,"",null,null,null,null,"","",null,null,null,null,"",null,null,null,null,"","","","","",null,null,null,null,"",null,null,null,null,"","",null,null,null,null,"",null,null,null,null,"","",null,null,null,null,"",null,null,null,null,"",""]
[33,null,null,null,null,null,"",null,null,null,null,"","",null,null,null,null,"",null,null,null,null,"","",null,null,null,null,{"$f":"IF(COUNT(Y41:AB41)>3,SUM(Y41:AB41),\"\")","v":""},null,null,null,null,{"$f":"IF(COUNT(AD41:AG41)>3,SUM(AD41:AG41),\"\")","v":""},{"$f":"IF(COUNT(AC41,AH41)>1,ROUND((AC41+AH41)/2,0),\"\")","v":""},null,null,null,null,{"$f":"IF(COUNT(AJ41:AM41)>3,SUM(AJ41:AM41),\"\")","v":""},null,null,null,null,{"$f":"IF(COUNT(AO41:AR41)>3,SUM(AO41:AR41),\"\")","v":""},{"$f":"IF(COUNT(AN41,AS41)>1,ROUND((AN41+AS41)/2,0),\"\")","v":""},null,null,null,null,"",null,null,null,null,{"$f":"IF(COUNT(AZ41:BC41)>3,SUM(AZ41:BC41),\"\")","v":""},null,null,null,null,"",null,null,null,null,"",null,null,null,null,"",null,null,null,null,"",{"$f":"IFERROR(ROUND(((AY41+BI41+BS41)*2)/3,0),\"\")","v":""},"","",null,null,null,null,"",null,null,null,null,"","",null,null,null,null,"",null,null,null,null,"","",null,null,null,null,"",null,null,null,null,"","",null,null,null,null,"",null,null,null,null,"","","","","",null,null,null,null,{"$f":"IF(COUNT(DW41:DZ41)>3,SUM(DW41:DZ41),\"\")","v":""},null,null,null,null,{"$f":"IF(COUNT(EB41:EE41)>3,SUM(EB41:EE41),\"\")","v":""},{"$f":"IF(COUNT(EA41,EF41)>1,ROUND((EA41+EF41)/2,0),\"\")","v":""},null,null,null,null,{"$f":"IF(COUNT(EH41:EK41)>3,SUM(EH41:EK41),\"\")","v":""},null,null,null,null,{"$f":"IF(COUNT(EM41:EP41)>3,SUM(EM41:EP41),\"\")","v":""},{"$f":"IF(COUNT(EL41,EQ41)>1,ROUND((EL41+EQ41)/2,0),\"\")","v":""},null,null,null,null,"",null,null,null,null,"",""]
[34,null,null,null,null,null,"",null,null,null,null,"","",null,null,null,null,"",null,null,null,null,"","",null,null,null,null,"",null,null,null,null,"","",null,null,null,null,"",null,null,null,null,"","",null,null,null,null,"",null,null,null,null,"",null,null,null,null,"",null,null,null,null,"",null,null,null,null,"",null,null,null,null,"","","","",null,null,null,null,"",null,null,null,null,"","",null,null,null,null,"",null,null,null,null,"","",null,null,null,null,"",null,null,null,null,"","",null,null,null,null,"",null,null,null,null,"","","","","",null,null,null,null,"",null,null,null,null,"","",null,null,null,null,"",null,null,null,null,"","",null,null,null,null,"",null,null,null,null,"",""]
[35,null,null,null,null,null,"",null,null,null,null,"","",null,null,null,null,"",null,null,null,null,"","",null,null,null,null,"",null,null,null,null,"","",null,null,null,null,"",null,null,null,null,"","",null,null,null,null,"",null,null,null,null,"",null,null,null,null,"",null,null,null,null,"",null,null,null,null,"",null,null,null,null,"","","","",null,null,null,null,"",null,null,null,null,"","",null,null,null,null,"",null,null,null,null,"","",null,null,null,null,"",null,null,null,null,"","",null,null,null,null,"",null,null,null,null,"","","","","",null,null,null,null,"",null,null,null,null,"","",null,null,null,null,"",null,null,null,null,"","",null,null,null,null,"",null,null,null,null,"",""]
[36,null,null,null,null,null,"",null,null,null,null,"","",null,null,null,null,"",null,null,null,null,"","",null,null,null,null,"",null,null,null,null,"","",null,null,null,null,"",null,null,null,null,"","",null,null,null,null,"",null,null,null,null,"",null,null,null,null,"",null,null,null,null,"",null,null,null,null,"",null,null,null,null,"","","","",null,null,null,null,"",null,null,null,null,"","",null,null,null,null,"",null,null,null,null,"","",null,null,null,null,"",null,null,null,null,"","",null,null,null,null,"",null,null,null,null,"","","","","",null,null,null,null,"",null,null,null,null,"","",null,null,null,null,"",null,null,null,null,"","",null,null,null,null,"",null,null,null,null,"",""]
[37,null,null,null,null,null,"",null,null,null,null,"","",null,null,null,null,"",null,null,null,null,"","",null,null,null,null,"",null,null,null,null,"","",null,null,null,null,"",null,null,null,null,"","",null,null,null,null,"",null,null,null,null,"",null,null,null,null,"",null,null,null,null,"",null,null,null,null,"",null,null,null,null,"","","","",null,null,null,null,"",null,null,null,null,"","",null,null,null,null,"",null,null,null,null,"","",null,null,null,null,"",null,null,null,null,"","",null,null,null,null,"",null,null,null,null,"","","","","",null,null,null,null,"",null,null,null,null,"","",null,null,null,null,"",null,null,null,null,"","",null,null,null,null,"",null,null,null,null,"",""]
[38,null,null,null,null,null,"",null,null,null,null,"","",null,null,null,null,"",null,null,null,null,"","",null,null,null,null,"",null,null,null,null,"","",null,null,null,null,"",null,null,null,null,"","",null,null,null,null,"",null,null,null,null,"",null,null,null,null,"",null,null,null,null,"",null,null,null,null,"",null,null,null,null,"","","","",null,null,null,null,"",null,null,null,null,"","",null,null,null,null,"",null,null,null,null,"","",null,null,null,null,"",null,null,null,null,"","",null,null,null,null,"",null,null,null,null,"","","","","",null,null,null,null,"",null,null,null,null,"","",null,null,null,null,"",null,null,null,null,"","",null,null,null,null,"",null,null,null,null,"",""]
[39,null,null,null,null,null,"",null,null,null,null,"","",null,null,null,null,"",null,null,null,null,"","",null,null,null,null,"",null,null,null,null,"","",null,null,null,null,"",null,null,null,null,"","",null,null,null,null,"",null,null,null,null,"",null,null,null,null,"",null,null,null,null,"",null,null,null,null,"",null,null,null,null,"","","","",null,null,null,null,"",null,null,null,null,"","",null,null,null,null,"",null,null,null,null,"","",null,null,null,null,"",null,null,null,null,"","",null,null,null,null,"",null,null,null,null,"","","","","",null,null,null,null,"",null,null,null,null,"","",null,null,null,null,"",null,null,null,null,"","",null,null,null,null,"",null,null,null,null,"",""]
[40,null,null,null,null,null,"",null,null,null,null,"","",null,null,null,null,"",null,null,null,null,"","",null,null,null,null,"",null,null,null,null,"","",null,null,null,null,"",null,null,null,null,"","",null,null,null,null,"",null,null,null,null,"",null,null,null,null,"",null,null,null,null,"",null,null,null,null,"",null,null,null,null,"","","","",null,null,null,null,"",null,null,null,null,"","",null,null,null,null,"",null,null,null,null,"","",null,null,null,null,"",null,null,null,null,"","",null,null,null,null,"",null,null,null,null,"","","","","",null,null,null,null,"",null,null,null,null,"","",null,null,null,null,"",null,null,null,null,"","",null,null,null,null,"",null,null,null,null,"",""]
[41,null,null,null,null,null,"",null,null,null,null,"","",null,null,null,null,"",null,null,null,null,"","",null,null,null,null,"",null,null,null,null,"","",null,null,null,null,"",null,null,null,null,"","",null,null,null,null,"",null,null,null,null,"",null,null,null,null,"",null,null,null,null,"",null,null,null,null,"",null,null,null,null,"","","","",null,null,null,null,"",null,null,null,null,"","",null,null,null,null,"",null,null,null,null,"","",null,null,null,null,"",null,null,null,null,"","",null,null,null,null,"",null,null,null,null,"","","","","",null,null,null,null,"",null,null,null,null,"","",null,null,null,null,"",null,null,null,null,"","",null,null,null,null,"",null,null,null,null,"",""]
[42,null,null,null,null,null,"",null,null,null,null,"","",null,null,null,null,"",null,null,null,null,"","",null,null,null,null,"",null,null,null,null,"","",null,null,null,null,"",null,null,null,null,"","",null,null,null,null,"",null,null,null,null,"",null,null,null,null,"",null,null,null,null,"",null,null,null,null,"",null,null,null,null,"","","","",null,null,null,null,"",null,null,null,null,"","",null,null,null,null,"",null,null,null,null,"","",null,null,null,null,"",null,null,null,null,"","",null,null,null,null,"",null,null,null,null,"","","","","",null,null,null,null,"",null,null,null,null,"","",null,null,null,null,"",null,null,null,null,"","",null,null,null,null,"",null,null,null,null,"",""]
[43,null,null,null,null,null,"",null,null,null,null,"","",null,null,null,null,"",null,null,null,null,"","",null,null,null,null,"",null,null,null,null,"","",null,null,null,null,"",null,null,null,null,"","",null,null,null,null,"",null,null,null,null,"",null,null,null,null,"",null,null,null,null,"",null,null,null,null,"",null,null,null,null,"","","","",null,null,null,null,"",null,null,null,null,"","",null,null,null,null,"",null,null,null,null,"","",null,null,null,null,"",null,null,null,null,"","",null,null,null,null,"",null,null,null,null,"","","","","",null,null,null,null,"",null,null,null,null,"","",null,null,null,null,"",null,null,null,null,"","",null,null,null,null,"",null,null,null,null,"",""]
[44,null,null,null,null,null,"",null,null,null,null,"","",null,null,null,null,"",null,null,null,null,"","",null,null,null,null,"",null,null,null,null,"","",null,null,null,null,"",null,null,null,null,"","",null,null,null,null,"",null,null,null,null,"",null,null,null,null,"",null,null,null,null,"",null,null,null,null,"",null,null,null,null,"","","","",null,null,null,null,"",null,null,null,null,"","",null,null,null,null,"",null,null,null,null,"","",null,null,null,null,"",null,null,null,null,"","",null,null,null,null,"",null,null,null,null,"","","","","",null,null,null,null,"",null,null,null,null,"","",null,null,null,null,"",null,null,null,null,"","",null,null,null,null,"",null,null,null,null,"",""]
[45,null,null,null,null,null,"",null,null,null,null,"","",null,null,null,null,"",null,null,null,null,"","",null,null,null,null,"",null,null,null,null,"","",null,null,null,null,"",null,null,null,null,"","",null,null,null,null,"",null,null,null,null,"",null,null,null,null,"",null,null,null,null,"",null,null,null,null,"",null,null,null,null,"","","","",null,null,null,null,"",null,null,null,null,"","",null,null,null,null,"",null,null,null,null,"","",null,null,null,null,"",null,null,null,null,"","",null,null,null,null,"",null,null,null,null,"","","","","",null,null,null,null,"",null,null,null,null,"","",null,null,null,null,"",null,null,null,null,"","",null,null,null,null,"",null,null,null,null,"",""]
[46,null,null,null,null,null,"",null,null,null,null,"","",null,null,null,null,"",null,null,null,null,"","",null,null,null,null,"",null,null,null,null,"","",null,null,null,null,"",null,null,null,null,"","",null,null,null,null,"",null,null,null,null,"",null,null,null,null,"",null,null,null,null,"",null,null,null,null,"",null,null,null,null,"","","","",null,null,null,null,"",null,null,null,null,"","",null,null,null,null,"",null,null,null,null,"","",null,null,null,null,"",null,null,null,null,"","",null,null,null,null,"",null,null,null,null,"","","","","",null,null,null,null,"",null,null,null,null,"","",null,null,null,null,"",null,null,null,null,"","",null,null,null,null,"",null,null,null,null,"",""]
[47,null,null,null,null,null,"",null,null,null,null,"","",null,null,null,null,"",null,null,null,null,"","",null,null,null,null,"",null,null,null,null,"","",null,null,null,null,"",null,null,null,null,"","",null,null,null,null,"",null,null,null,null,"",null,null,null,null,"",null,null,null,null,"",null,null,null,null,"",null,null,null,null,"","","","",null,null,null,null,"",null,null,null,null,"","",null,null,null,null,"",null,null,null,null,"","",null,null,null,null,"",null,null,null,null,"","",null,null,null,null,"",null,null,null,null,"","","","","",null,null,null,null,"",null,null,null,null,"","",null,null,null,null,"",null,null,null,null,"","",null,null,null,null,"",null,null,null,null,"",""]
[48,null,null,null,null,null,"",null,null,null,null,"","",null,null,null,null,"",null,null,null,null,"","",null,null,null,null,"",null,null,null,null,"","",null,null,null,null,"",null,null,null,null,"","",null,null,null,null,"",null,null,null,null,"",null,null,null,null,"",null,null,null,null,"",null,null,null,null,"",null,null,null,null,"","","","",null,null,null,null,"",null,null,null,null,"","",null,null,null,null,"",null,null,null,null,"","",null,null,null,null,"",null,null,null,null,"","",null,null,null,null,"",null,null,null,null,"","","","","",null,null,null,null,"",null,null,null,null,"","",null,null,null,null,"",null,null,null,null,"","",null,null,null,null,"",null,null,null,null,"",""]
[49,null,null,null,null,null,"",null,null,null,null,"","",null,null,null,null,"",null,null,null,null,"","",null,null,null,null,"",null,null,null,null,"","",null,null,null,null,"",null,null,null,null,"","",null,null,null,null,"",null,null,null,null,"",null,null,null,null,"",null,null,null,null,"",null,null,null,null,"",null,null,null,null,"","","","",null,null,null,null,"",null,null,null,null,"","",null,null,null,null,"",null,null,null,null,"","",null,null,null,null,"",null,null,null,null,"","",null,null,null,null,"",null,null,null,null,"","","","","",null,null,null,null,"",null,null,null,null,"","",null,null,null,null,"",null,null,null,null,"","",null,null,null,null,"",null,null,null,null,"",""]
[50,null,null,null,null,null,"",null,null,null,null,"","",null,null,null,null,"",null,null,null,null,"","",null,null,null,null,"",null,null,null,null,"","",null,null,null,null,"",null,null,null,null,"","",null,null,null,null,"",null,null,null,null,"",null,null,null,null,"",null,null,null,null,"",null,null,null,null,"",null,null,null,null,"","","","",null,null,null,null,"",null,null,null,null,"","",null,null,null,null,"",null,null,null,null,"","",null,null,null,null,"",null,null,null,null,"","",null,null,null,null,"",null,null,null,null,"","","","","",null,null,null,null,"",null,null,null,null,"","",null,null,null,null,"",null,null,null,null,"","",null,null,null,null,"",null,null,null,null,"",""]
[51,null,null,null,null,null,"",null,null,null,null,"","",null,null,null,null,"",null,null,null,null,"","",null,null,null,null,"",null,null,null,null,"","",null,null,null,null,"",null,null,null,null,"","",null,null,null,null,"",null,null,null,null,"",null,null,null,null,"",null,null,null,null,"",null,null,null,null,"",null,null,null,null,"","","","",null,null,null,null,"",null,null,null,null,"","",null,null,null,null,"",null,null,null,null,"","",null,null,null,null,"",null,null,null,null,"","",null,null,null,null,"",null,null,null,null,"","","","","",null,null,null,null,"",null,null,null,null,"","",null,null,null,null,"",null,null,null,null,"","",null,null,null,null,"",null,null,null,null,"",""]
[52,null,null,null,null,null,"",null,null,null,null,"","",null,null,null,null,"",null,null,null,null,"","",null,null,null,null,"",null,null,null,null,"","",null,null,null,null,"",null,null,null,null,"","",null,null,null,null,"",null,null,null,null,"",null,null,null,null,"",null,null,null,null,"",null,null,null,null,"",null,null,null,null,"","","","",null,null,null,null,"",null,null,null,null,"","",null,null,null,null,"",null,null,null,null,"","",null,null,null,null,"",null,null,null,null,"","",null,null,null,null,"",null,null,null,null,"","","","","",null,null,null,null,"",null,null,null,null,"","",null,null,null,null,"",null,null,null,null,"","",null,null,null,null,"",null,null,null,null,"",""]
[53,null,null,null,null,null,"",null,null,null,null,"","",null,null,null,null,"",null,null,null,null,"","",null,null,null,null,"",null,null,null,null,"","",null,null,null,null,"",null,null,null,null,"","",null,null,null,null,"",null,null,null,null,"",null,null,null,null,"",null,null,null,null,"",null,null,null,null,"",null,null,null,null,"","","","",null,null,null,null,"",null,null,null,null,"","",null,null,null,null,"",null,null,null,null,"","",null,null,null,null,"",null,null,null,null,"","",null,null,null,null,"",null,null,null,null,"","","","","",null,null,null,null,"",null,null,null,null,"","",null,null,null,null,"",null,null,null,null,"","",null,null,null,null,"",null,null,null,null,"",""]
[54,null,null,null,null,null,"",null,null,null,null,"","",null,null,null,null,"",null,null,null,null,"","",null,null,null,null,"",null,null,null,null,"","",null,null,null,null,"",null,null,null,null,"","",null,null,null,null,"",null,null,null,null,"",null,null,null,null,"",null,null,null,null,"",null,null,null,null,"",null,null,null,null,"","","","",null,null,null,null,"",null,null,null,null,"","",null,null,null,null,"",null,null,null,null,"","",null,null,null,null,"",null,null,null,null,"","",null,null,null,null,"",null,null,null,null,"","","","","",null,null,null,null,"",null,null,null,null,"","",null,null,null,null,"",null,null,null,null,"","",null,null,null,null,"",null,null,null,null,"",""]
[55,null,null,null,null,null,"",null,null,null,null,"","",null,null,null,null,"",null,null,null,null,"","",null,null,null,null,"",null,null,null,null,"","",null,null,null,null,"",null,null,null,null,"","",null,null,null,null,"",null,null,null,null,"",null,null,null,null,"",null,null,null,null,"",null,null,null,null,"",null,null,null,null,"","","","",null,null,null,null,"",null,null,null,null,"","",null,null,null,null,"",null,null,null,null,"","",null,null,null,null,"",null,null,null,null,"","",null,null,null,null,"",null,null,null,null,"","","","","",null,null,null,null,"",null,null,null,null,"","",null,null,null,null,"",null,null,null,null,"","",null,null,null,null,"",null,null,null,null,"",""]
[56,null,null,null,null,null,"",null,null,null,null,"","",null,null,null,null,"",null,null,null,null,"","",null,null,null,null,"",null,null,null,null,"","",null,null,null,null,"",null,null,null,null,"","",null,null,null,null,"",null,null,null,null,"",null,null,null,null,"",null,null,null,null,"",null,null,null,null,"",null,null,null,null,"","","","",null,null,null,null,"",null,null,null,null,"","",null,null,null,null,"",null,null,null,null,"","",null,null,null,null,"",null,null,null,null,"","",null,null,null,null,"",null,null,null,null,"","","","","",null,null,null,null,"",null,null,null,null,"","",null,null,null,null,"",null,null,null,null,"","",null,null,null,null,"",null,null,null,null,"",""]
[57,null,null,null,null,null,"",null,null,null,null,"","",null,null,null,null,"",null,null,null,null,"","",null,null,null,null,"",null,null,null,null,"","",null,null,null,null,"",null,null,null,null,"","",null,null,null,null,"",null,null,null,null,"",null,null,null,null,"",null,null,null,null,"",null,null,null,null,"",null,null,null,null,"","","","",null,null,null,null,"",null,null,null,null,"","",null,null,null,null,"",null,null,null,null,"","",null,null,null,null,"",null,null,null,null,"","",null,null,null,null,"",null,null,null,null,"","","","","",null,null,null,null,"",null,null,null,null,"","",null,null,null,null,"",null,null,null,null,"","",null,null,null,null,"",null,null,null,null,"",""]
[58,null,null,null,null,null,"",null,null,null,null,"","",null,null,null,null,"",null,null,null,null,"","",null,null,null,null,"",null,null,null,null,"","",null,null,null,null,"",null,null,null,null,"","",null,null,null,null,"",null,null,null,null,"",null,null,null,null,"",null,null,null,null,"",null,null,null,null,"",null,null,null,null,"","","","",null,null,null,null,"",null,null,null,null,"","",null,null,null,null,"",null,null,null,null,"","",null,null,null,null,"",null,null,null,null,"","",null,null,null,null,"",null,null,null,null,"","","","","",null,null,null,null,"",null,null,null,null,"","",null,null,null,null,"",null,null,null,null,"","",null,null,null,null,"",null,null,null,null,"",""]
[59,null,null,null,null,null,"",null,null,null,null,"","",null,null,null,null,"",null,null,null,null,"","",null,null,null,null,"",null,null,null,null,"","",null,null,null,null,"",null,null,null,null,"","",null,null,null,null,"",null,null,null,null,"",null,null,null,null,"",null,null,null,null,"",null,null,null,null,"",null,null,null,null,"","","","",null,null,null,null,"",null,null,null,null,"","",null,null,null,null,"",null,null,null,null,"","",null,null,null,null,"",null,null,null,null,"","",null,null,null,null,"",null,null,null,null,"","","","","",null,null,null,null,"",null,null,null,null,"","",null,null,null,null,"",null,null,null,null,"","",null,null,null,null,"",null,null,null,null,"",""]
[60,null,null,null,null,null,"",null,null,null,null,"","",null,null,null,null,"",null,null,null,null,"","",null,null,null,null,"",null,null,null,null,"","",null,null,null,null,"",null,null,null,null,"","",null,null,null,null,"",null,null,null,null,"",null,null,null,null,"",null,null,null,null,"",null,null,null,null,"",null,null,null,null,"","","","",null,null,null,null,"",null,null,null,null,"","",null,null,null,null,"",null,null,null,null,"","",null,null,null,null,"",null,null,null,null,"","",null,null,null,null,"",null,null,null,null,"","","","","",null,null,null,null,"",null,null,null,null,"","",null,null,null,null,"",null,null,null,null,"","",null,null,null,null,"",null,null,null,null,"",""]
[61,null,null,null,null,null,"",null,null,null,null,"","",null,null,null,null,"",null,null,null,null,"","",null,null,null,null,"",null,null,null,null,"","",null,null,null,null,"",null,null,null,null,"","",null,null,null,null,"",null,null,null,null,"",null,null,null,null,"",null,null,null,null,"",null,null,null,null,"",null,null,null,null,"","","","",null,null,null,null,"",null,null,null,null,"","",null,null,null,null,"",null,null,null,null,"","",null,null,null,null,"",null,null,null,null,"","",null,null,null,null,"",null,null,null,null,"","","","","",null,null,null,null,"",null,null,null,null,"","",null,null,null,null,"",null,null,null,null,"","",null,null,null,null,"",null,null,null,null,"",""]
[62,null,null,null,null,null,"",null,null,null,null,"","",null,null,null,null,"",null,null,null,null,"","",null,null,null,null,"",null,null,null,null,"","",null,null,null,null,"",null,null,null,null,"","",null,null,null,null,"",null,null,null,null,"",null,null,null,null,"",null,null,null,null,"",null,null,null,null,"",null,null,null,null,"","","","",null,null,null,null,"",null,null,null,null,"","",null,null,null,null,"",null,null,null,null,"","",null,null,null,null,"",null,null,null,null,"","",null,null,null,null,"",null,null,null,null,"","","","","",null,null,null,null,"",null,null,null,null,"","",null,null,null,null,"",null,null,null,null,"","",null,null,null,null,"",null,null,null,null,"",""]
[63,null,null,null,null,null,"",null,null,null,null,"","",null,null,null,null,"",null,null,null,null,"","",null,null,null,null,"",null,null,null,null,"","",null,null,null,null,"",null,null,null,null,"","",null,null,null,null,"",null,null,null,null,"",null,null,null,null,"",null,null,null,null,"",null,null,null,null,"",null,null,null,null,"","","","",null,null,null,null,"",null,null,null,null,"","",null,null,null,null,"",null,null,null,null,"","",null,null,null,null,"",null,null,null,null,"","",null,null,null,null,"",null,null,null,null,"","","","","",null,null,null,null,"",null,null,null,null,"","",null,null,null,null,"",null,null,null,null,"","",null,null,null,null,"",null,null,null,null,"",""]

{"sheet":"Moncer","index":1,"n_rows":45,"n_cols":20,"rows_kept":45,"cut":false,"hidden":false,"merged":[[35,1,36,8],[37,2,38,8],[39,7,40,8],[41,5,42,6],[39,5,40,6],[41,1,42,2],[41,4,42,4],[39,0,40,1],[41,0,42,0],[39,3,40,4],[41,7,42,8],[35,0,36,0],[37,0,38,1],[39,2,40,2],[34,5,34,8],[34,0,34,2],[33,5,33,8],[33,0,33,2],[19,5,19,8],[31,5,31,8],[32,5,32,8],[22,5,22,8],[23,5,23,8],[21,5,21,8],[30,5,30,8],[26,5,26,8],[27,5,27,8],[25,5,25,8],[24,5,24,8],[28,5,28,8],[32,0,32,2],[9,0,9,1],[4,0,4,3],[25,0,25,2],[29,0,29,2],[28,0,28,2],[19,0,19,2],[20,0,20,2],[26,0,26,2],[31,0,31,2],[30,0,30,2],[29,5,29,8],[24,0,24,2],[13,3,14,3],[17,5,17,8],[18,5,18,8],[23,0,23,2],[21,0,21,2],[20,5,20,8],[17,0,17,2],[18,0,18,2],[22,0,22,2],[27,0,27,2],[3,16,3,18],[13,4,14,8],[16,0,16,2],[15,5,15,8],[7,1,7,4],[11,6,11,8],[16,5,16,8],[11,0,11,1],[5,1,6,8],[7,6,7,8],[9,2,9,3],[11,2,11,3],[13,0,15,2],[1,5,4,6],[9,6,9,8],[2,0,3,3]]}
[null,null,null,null,null,null,null,null,null,"تجربة",null,null,null,null,null,null,null,null,null,"محمد"]
[null,null,null,null,null,null,null,null,null,null,null,null,null,null,null,null,null,null,null,"التقويم الاول"]
[null,null,null,null,null,null,null,null,null,null,null,null,null,null,"h",null,null,null,null,"فصل اول"]
[null,null,null,null,null,null,null,null,null,null,null,null,null,true,"فصل ثاني"]
[null,null,null,null,null,null,null,null,null,null,null,null,null,"محمد"]
[]
[null,null,null,null,null,null,null,null,null,null,null,null,null,null,"محمد"]
["الإســـم :","محمد",null,null,null,null,null,null,null,null,null,"اسم الطالب "]
[]
[null,null,null,null,null,null,null,null,null,null,null,null,null,41,null,null,0]
[]
[]
[]
[5,null,null,"النهاية","العلامــــة المستحقــــة"]
[]
[null,null,null,"العظمى","بالارقام","بالحــــروف"]
[{"$f":"'Mark All'!C5","v":"التربية الإسلامية "},null,null,null,{"$f":"IFERROR(INDEX(('Mark All'!$C$9:$G$63,'Mark All'!$H$9:$M$63),MATCH(Moncer!$T$1,'Mark All'!$B$9:$B$63,0),MATCH(T$2,'Mark All'!$H$8:$M$8,0),(IF(NOT(ISERROR(MATCH('Mark All'!C$5,Moncer!$A$17:$A$63))),IF(T$3='Mark All'!$C$7,1,IF(T$3='Mark All'!$H$7,2,3))))),\"\")","v":20},{"$f":"IFERROR(NombreToArabe(E17),\"\")","v":" عشرون"}]
[{"$f":"'Mark All'!N5","v":"العربية لغتي "},null,null,null,{"$f":"IFERROR(INDEX(('Mark All'!$N$9:$R$63,'Mark All'!$S$9:$X$63),MATCH(Moncer!$T$1,'Mark All'!$B$9:$B$63,0),MATCH(Moncer!T$2,'Mark All'!$S$8:$X$8,0),(IF(NOT(ISERROR(MATCH('Mark All'!N$5,Moncer!$A$17:$A$63))),IF(Moncer!T$3='Mark All'!$N$7,1,IF(Moncer!T$3='Mark All'!$S$7,2,3))))),\"\")","v":15},{"$f":"IFERROR(NombreToArabe(E18),\"\")","v":"خمسة عشر"}]
[{"$f":"'Mark All'!Y5","v":"اللغة الإنجليزية"},null,null,null,{"$f":"IFERROR(INDEX(('Mark All'!$Y$9:$AC$63,'Mark All'!$AD$9:$AI$63),MATCH(Moncer!$T$1,'Mark All'!$B$9:$B$63,0),MATCH(Moncer!T$2,'Mark All'!$AD$8:$AI$8,0),(IF(NOT(ISERROR(MATCH('Mark All'!Y$5,Moncer!$A$17:$A$63))),IF(Moncer!T$3='Mark All'!$Y$7,1,IF(Moncer!T$3='Mark All'!$AD$7,2,3))))),\"\")","v":15},"خمسة عشر"]
[{"$f":"'Mark All'!AJ5","v":"الرياضيات"},null,null,null,{"$f":"IFERROR(INDEX(('Mark All'!$AJ$9:$AN$63,'Mark All'!$AO$9:$AT$63),MATCH(Moncer!$T$1,'Mark All'!$B$9:$B$63,0),MATCH(Moncer!T$2,'Mark All'!$AO$8:$AT$8,0),(IF(NOT(ISERROR(MATCH('Mark All'!AJ5,Moncer!$A$17:$A$63))),IF(Moncer!T$3='Mark All'!$AJ$7,1,IF(Moncer!T$3='Mark All'!$AO$7,2,3))))),\"\")","v":12},"اثني عشر"]
[{"$f":"'Mark All'!AU6","v":"التاريخ"},null,null,null,{"$f":"IFERROR(INDEX(('Mark All'!$AU$9:AY64,'Mark All'!$AZ$9:$BD$63),MATCH(Moncer!$T$1,'Mark All'!$B$9:$B$63,0),MATCH(Moncer!T$2,'Mark All'!$AZ$8:$BD$8,0),(IF(NOT(ISERROR(MATCH('Mark All'!$AU$6,Moncer!A21))),IF(Moncer!T$3='Mark All'!$AU$7,1,IF(Moncer!T$3='Mark All'!$AZ$7,2,3))))),\"\")","v":12},"اثني عشر",null,null,null,null,null,null,null,null,null,{"$f":"IFERROR(INDEX(('Mark All'!$AU$9:AY64,'Mark All'!$AZ$9:$CA$63),MATCH(Moncer!$T$1,'Mark All'!$B$9:$B$63,0),MATCH(Moncer!T$2,'Mark All'!$AZ$8:$CA$8,0),(IF(NOT(ISERROR(MATCH('Mark All'!$AU$6,Moncer!A21))),IF(Moncer!T$3='Mark All'!$AU$7,1,IF(Moncer!T$3='Mark All'!$AZ$7,2,3))))),\"\")","v":12}]
[{"$f":"'Mark All'!BE6","v":"الجغرافيا"},null,null,null,{"$f":"IFERROR(INDEX(('Mark All'!$BE$9:$BI$63,'Mark All'!$BJ$9:$BN$63),MATCH(Moncer!$T$1,'Mark All'!$B$9:$B$63,0),MATCH(Moncer!T$2,'Mark All'!$BJ$8:$BN$8,0),(IF(NOT(ISERROR(MATCH('Mark All'!$BE$6,Moncer!A22))),IF(Moncer!T$3='Mark All'!$BE$7,1,IF(Moncer!T$3='Mark All'!$BJ$7,2,3))))),\"\")","v":16},"ستة عشر"]
[{"$f":"'Mark All'!BO6","v":"التربية الوطنية و المدنية "},null,null,null,{"$f":"IFERROR(INDEX(('Mark All'!$BO$9:$BS$63,'Mark All'!$BT$9:$BX$63),MATCH(Moncer!$T$1,'Mark All'!$B$9:$B$63,0),MATCH(Moncer!T$2,'Mark All'!$BT$8:$BX$8,0),(IF(NOT(ISERROR(MATCH('Mark All'!$BO$6,Moncer!A23))),IF(Moncer!T$3='Mark All'!$BO$7,1,IF(Moncer!T$3='Mark All'!$BT$7,2,3))))),\"\")","v":10},"عشرة"]
[{"$f":"'Mark All'!CB6","v":"الفيزياء"},null,null,null,{"$f":"IFERROR(INDEX(('Mark All'!$CB$9:$CF$63,'Mark All'!$CG$9:$CL$63),MATCH(Moncer!$T$1,'Mark All'!$B$9:$B$63,0),MATCH(Moncer!T$2,'Mark All'!$CG$8:$CL$8,0),(IF(NOT(ISERROR(MATCH('Mark All'!$CB$6,Moncer!A24))),IF(Moncer!T$3='Mark All'!$CB$7,1,IF(Moncer!T$3='Mark All'!$CG$7,2,3))))),\"\")","v":14},"أربعة عشر"]
[{"$f":"'Mark All'!CM6","v":"العلوم الحياتية"},null,null,null,{"$f":"IFERROR(INDEX(('Mark All'!$CM$9:$CQ$63,'Mark All'!$CR$9:$CW$63),MATCH(Moncer!$T$1,'Mark All'!$B$9:$B$63,0),MATCH(Moncer!T$2,'Mark All'!$CR$8:$CW$8,0),(IF(NOT(ISERROR(MATCH('Mark All'!$CM$6,Moncer!A25))),IF(Moncer!T$3='Mark All'!$CM$7,1,IF(Moncer!T$3='Mark All'!$CR$7,2,3))))),\"\")","v":18},"ثمانية عشر"]
[{"$f":"'Mark All'!CX6","v":"الكيمياء"},null,null,null,{"$f":"IFERROR(INDEX(('Mark All'!CX$9:$DB$63,'Mark All'!$DC$9:$DH$63),MATCH(Moncer!$T$1,'Mark All'!$B$9:$B$63,0),MATCH(Moncer!T$2,'Mark All'!$DC$8:$DH$8,0),(IF(NOT(ISERROR(MATCH('Mark All'!$CX$6,Moncer!A26))),IF(Moncer!T$3='Mark All'!$CX$7,1,IF(Moncer!T$3='Mark All'!$DC$7,2,3))))),\"\")","v":15},{"$f":"IFERROR(NombreToArabe(E26),\"\")","v":"خمسة عشر"}]
[{"$f":"'Mark All'!DI6","v":"علوم الارض و البيئة "},null,null,null,{"$f":"IFERROR(INDEX(('Mark All'!DI$9:$DM$63,'Mark All'!$DN$9:$DS$63),MATCH(Moncer!$T$1,'Mark All'!$B$9:$B$63,0),MATCH(Moncer!T$2,'Mark All'!$DN$8:$DS$8,0),(IF(NOT(ISERROR(MATCH('Mark All'!$DI$6,Moncer!A27))),IF(Moncer!T$3='Mark All'!$DI$7,1,IF(Moncer!T$3='Mark All'!$DN$7,2,3))))),\"\")","v":15},"خمسة عشر"]
[{"$f":"'Mark All'!DW5","v":"التربية الفنية"},null,null,null,{"$f":"IFERROR(INDEX(('Mark All'!DW$9:$EA$63,'Mark All'!$EB$9:$EG$63),MATCH(Moncer!$T$1,'Mark All'!$B$9:$B$63,0),MATCH(Moncer!T$2,'Mark All'!$EB$8:$EG$8,0),(IF(NOT(ISERROR(MATCH('Mark All'!$DW$5,Moncer!A28))),IF(Moncer!T$3='Mark All'!$DW$7,1,IF(Moncer!T$3='Mark All'!$EB$7,2,3))))),\"\")","v":18},"ثمانية عشر"]
[{"$f":"'Mark All'!EH5","v":"التربية الرياضية"},null,null,null,{"$f":"IFERROR(INDEX(('Mark All'!EH$9:$EL$63,'Mark All'!$EM$9:$ER$63),MATCH(Moncer!$T$1,'Mark All'!$B$9:$B$63,0),MATCH(Moncer!T$2,'Mark All'!$EM$8:$ER$8,0),(IF(NOT(ISERROR(MATCH('Mark All'!$EH$5,Moncer!A29))),IF(Moncer!T$3='Mark All'!$EH$7,1,IF(Moncer!T$3='Mark All'!$EM$7,2,3))))),\"\")","v":20}," عشرون"]
[{"$f":"'Mark All'!ES5","v":"الحاسوب المهارات الرقمية "},null,null,null,{"$f":"IFERROR(INDEX(('Mark All'!ES$9:$EW$63,'Mark All'!$EX$9:$FC$63),MATCH(Moncer!$T$1,'Mark All'!$B$9:$B$63,0),MATCH(Moncer!T$2,'Mark All'!$EX$8:$FC$8,0),(IF(NOT(ISERROR(MATCH('Mark All'!$ES$5,Moncer!A30))),IF(Moncer!T$3='Mark All'!$ES$7,1,IF(Moncer!T$3='Mark All'!$EX$7,2,3))))),\"\")","v":19},"تسعة عشر"]
[{"$f":"'Mark All'!FD5","v":"الثقافة المالية "},null,null,null,{"$f":"IFERROR(INDEX(('Mark All'!FD$9:$FH$63,'Mark All'!$FI$9:$FN$63),MATCH(Moncer!$T$1,'Mark All'!$B$9:$B$63,0),MATCH(Moncer!T$2,'Mark All'!$FI$8:$FN$8,0),(IF(NOT(ISERROR(MATCH('Mark All'!$FD$5,Moncer!A31))),IF(Moncer!T$3='Mark All'!$FD$7,1,IF(Moncer!T$3='Mark All'!$FI$7,2,3))))),\"\")","v":22},"اثنان وعشرون"]
[{"$f":"'Mark All'!FO5","v":"اللغة الفرنسية "},null,null,null,{"$f":"IFERROR(INDEX(('Mark All'!FO$9:$FS$63,'Mark All'!$FT$9:$FY$63),MATCH(Moncer!$T$1,'Mark All'!$B$9:$B$63,0),MATCH(Moncer!T$2,'Mark All'!$FT$8:$TY$8,0),(IF(NOT(ISERROR(MATCH('Mark All'!$FO$5,Moncer!A32))),IF(Moncer!T$3='Mark All'!$FO$7,1,IF(Moncer!T$3='Mark All'!$FT$7,2,3))))),\"\")","v":18},{"$f":"IFERROR(NombreToArabe(E32),\"\")","v":"ثمانية عشر"}]
[null,null,null,null,null,""]
[null,null,null,null,null,""]
[]
[]
[]
["ملحوظات:",null,""]
[]
[null,null,null,null,null,"إسم وتوقيع مربي الصف:"]
[]
["خاتم المدرسة :",null,null,null,null,"إسم وتوقيع مدير المدرسة :"]
[]
["توقيع ولي الأمر:"]
[null,null," "]

{"sheet":"Print","index":2,"n_rows":170,"n_cols":6,"rows_kept":170,"cut":false,"hidden":true,"merged":[[166,7,167,8],[129,0,129,3],[130,1,131,8],[132,1,132,4],[132,6,132,8],[134,0,134,1],[134,2,134,3],[134,6,134,8],[136,0,136,1],[136,2,136,3],[151,0,151,2],[151,5,151,8],[152,0,152,2],[152,5,152,8],[153,0,153,2],[153,5,153,8],[148,0,148,2],[148,5,148,8],[149,0,149,2],[149,5,149,8],[150,0,150,2],[150,5,150,8],[157,0,157,2],[46,1,47,8],[48,1,48,4],[48,6,48,8],[50,0,50,1],[50,2,50,3],[94,0,94,1],[94,2,94,3],[94,6,94,8],[96,0,98,2],[96,3,97,3],[96,4,97,8],[98,5,98,8],[76,0,77,0],[76,1,77,8],[78,0,79,1],[78,2,79,8],[80,2,81,2],[80,3,81,4],[80,5,81,6],[80,7,81,8],[82,0,83,0],[82,1,83,2],[82,4,83,4],[12,0,14,2],[12,3,13,3],[12,4,13,8],[16,0,16,2],[16,5,16,8],[20,0,20,2],[20,5,20,8],[14,5,14,8],[15,0,15,2],[1,0,2,3],[3,0,3,3],[4,1,5,8],[6,1,6,4],[6,6,6,8],[8,0,8,1],[8,2,8,3],[8,6,8,8],[10,0,10,1],[10,2,10,3],[10,6,10,8],[28,0,28,2],[28,5,28,8],[23,0,23,2],[23,5,23,8],[24,0,24,2],[24,5,24,8],[25,0,25,2],[25,5,25,8],[15,5,15,8],[21,0,21,2],[21,5,21,8],[22,0,22,2],[22,5,22,8],[17,0,17,2],[17,5,17,8],[18,0,18,2],[18,5,18,8],[19,0,19,2],[19,5,19,8],[26,0,26,2],[26,5,26,8],[27,0,27,2],[27,5,27,8],[34,0,35,0],[34,1,35,8],[36,0,37,1],[36,2,37,8],[38,0,39,1],[38,2,39,2],[38,3,39,4],[38,5,39,6],[38,7,39,8],[32,0,32,2],[32,5,32,8],[33,0,33,2],[33,5,33,8],[29,0,29,2],[29,5,29,8],[30,0,30,2],[30,5,30,8],[31,0,31,2],[31,5,31,8],[40,0,41,0],[40,1,41,2],[40,4,41,4],[63,0,63,2],[63,5,63,8],[64,0,64,2],[64,5,64,8],[60,5,60,8],[61,0,61,2],[61,5,61,8],[54,0,56,2],[54,3,55,3],[54,4,55,8],[56,5,56,8],[57,0,57,2],[57,5,57,8],[58,0,58,2],[59,5,59,8],[60,0,60,2],[59,0,59,2],[40,5,41,6],[40,7,41,8],[43,0,44,3],[45,0,45,3],[68,0,68,2],[68,5,68,8],[69,0,69,2],[69,5,69,8],[109,0,109,2],[109,5,109,8],[110,0,110,2],[110,5,110,8],[80,0,81,1],[70,0,70,2],[70,5,70,8],[88,1,89,8],[90,1,90,4],[90,6,90,8],[92,0,92,1],[92,2,92,3],[92,6,92,8],[101,5,101,8],[102,0,102,2],[102,5,102,8],[103,0,103,2],[103,5,103,8],[99,0,99,2],[99,5,99,8],[113,5,113,8],[114,0,114,2],[114,5,114,8],[74,0,74,2],[74,5,74,8],[75,0,75,2],[75,5,75,8],[71,0,71,2],[71,5,71,8],[72,0,72,2],[72,5,72,8],[73,0,73,2],[73,5,73,8],[82,5,83,6],[82,7,83,8],[85,0,86,3],[87,0,87,3],[118,0,119,0],[118,1,119,8],[120,0,121,1],[120,2,121,8],[122,0,123,1],[122,2,123,2],[122,3,123,4],[122,5,123,6],[122,7,123,8],[104,5,104,8],[105,0,105,2],[105,5,105,8],[106,0,106,2],[106,5,106,8],[104,0,104,2],[111,0,111,2],[111,5,111,8],[107,5,107,8],[108,0,108,2],[108,5,108,8],[65,0,65,2],[65,5,65,8],[66,0,66,2],[66,5,66,8],[67,0,67,2],[67,5,67,8],[62,0,62,2],[62,5,62,8],[50,6,50,8],[52,0,52,1],[52,2,52,3],[58,5,58,8],[52,6,52,8],[145,0,145,2],[145,5,145,8],[146,0,146,2],[146,5,146,8],[147,0,147,2],[147,5,147,8],[144,5,144,8],[141,0,141,2],[141,5,141,8],[142,0,142,2],[142,5,142,8],[143,0,143,2],[143,5,143,8],[144,0,144,2],[100,0,100,2],[100,5,100,8],[101,0,101,2],[127,0,128,3],[136,6,136,8],[138,0,140,2],[138,3,139,3],[138,4,139,8],[140,5,140,8],[124,0,125,0],[124,1,125,2],[124,4,125,4],[124,5,125,6],[124,7,125,8],[107,0,107,2],[115,0,115,2],[115,5,115,8],[116,0,116,2],[116,5,116,8],[117,0,117,2],[117,5,117,8],[112,0,112,2],[112,5,112,8],[113,0,113,2],[166,0,167,0],[166,1,167,2],[166,4,167,4],[157,5,157,8],[158,0,158,2],[158,5,158,8],[159,0,159,2],[159,5,159,8],[154,0,154,2],[154,5,154,8],[155,0,155,2],[155,5,155,8],[156,0,156,2],[156,5,156,8],[160,0,161,0],[160,1,161,8],[162,0,163,1],[162,2,163,8],[164,0,165,1],[164,2,165,2],[164,3,165,4],[164,5,165,6],[164,7,165,8],[166,5,167,6]]}
[]
[]
[]
[]
[]
[]
["الإســـم :","محمد"]
[]
[]
[]
[]
[]
[5,null,null,"النهاية","العلامــــة المستحقــــة"]
[]
[null,null,null,"العظمى","بالارقام","بالحــــروف"]
["التربية الإسلامية ",null,null,null,20," عشرون"]
["العربية لغتي ",null,null,null,15,"خمسة عشر"]
["اللغة الإنجليزية",null,null,null,15,"خمسة عشر"]
["الرياضيات",null,null,null,12,"اثني عشر"]
["التاريخ",null,null,null,12,"اثني عشر"]
["الجغرافيا",null,null,null,16,"ستة عشر"]
["التربية الوطنية و المدنية ",null,null,null,10,"عشرة"]
["الفيزياء",null,null,null,14,"أربعة عشر"]
["العلوم الحياتية",null,null,null,18,"ثمانية عشر"]
["الكيمياء",null,null,null,15,"خمسة عشر"]
["علوم الارض و البيئة ",null,null,null,15,"خمسة عشر"]
["التربية الفنية",null,null,null,18,"ثمانية عشر"]
["التربية الرياضية",null,null,null,20," عشرون"]
["الحاسوب المهارات الرقمية ",null,null,null,19,"تسعة عشر"]
["الثقافة المالية ",null,null,null,22,"اثنان وعشرون"]
["اللغة الفرنسية ",null,null,null,18,"ثمانية عشر"]
[null,null,null,null,null,""]
[null,null,null,null,null,""]
[]
[]
[]
["ملحوظات:",null,""]
[]
[null,null,null,null,null,"إسم وتوقيع مربي الصف:"]
[]
["خاتم المدرسة :",null,null,null,null,"إسم وتوقيع مدير المدرسة :"]
[]
["توقيع ولي الأمر:"]
[]
[]
[]
[]
[]
["الإســـم :","بدر"]
[]
[]
[]
[]
[]
[5,null,null,"النهاية","العلامــــة المستحقــــة"]
[]
[null,null,null,"العظمى","بالارقام","بالحــــروف"]
["التربية الإسلامية ",null,null,null,10,"عشرة"]
["العربية لغتي ",null,null,null,22,"اثنان وعشرون"]
["اللغة الإنجليزية",null,null,null,30," ثلاثون"]
["الرياضيات",null,null,null,18,"ثمانية عشر"]
["التاريخ",null,null,null,17,"سبعة عشر"]
["الجغرافيا",null,null,null,17,"سبعة عشر"]
["التربية الوطنية و المدنية ",null,null,null,14,"أربعة عشر"]
["الفيزياء",null,null,null,11,"إحدى عشر"]
["العلوم الحياتية",null,null,null,19,"تسعة عشر"]
["الكيمياء",null,null,null,22,"اثنان وعشرون"]
["علوم الارض و البيئة ",null,null,null,10,"عشرة"]
["التربية الفنية",null,null,null,14,"أربعة عشر"]
["التربية الرياضية",null,null,null,14,"أربعة عشر"]
["الحاسوب المهارات الرقمية ",null,null,null,11,"إحدى عشر"]
["الثقافة المالية ",null,null,null,40," أربعون"]
["اللغة الفرنسية ",null,null,null,10,"عشرة"]
[null,null,null,null,null,""]
[null,null,null,null,null,""]
[]
[]
[]
["ملحوظات:",null,""]
[]
[null,null,null,null,null,"إسم وتوقيع مربي الصف:"]
[]
["خاتم المدرسة :",null,null,null,null,"إسم وتوقيع مدير المدرسة :"]
[]
["توقيع ولي الأمر:"]
[]
[]
[]
[]
[]
["الإســـم :","كمال"]
[]
[]
[]
[]
[]
[5,null,null,"النهاية","العلامــــة المستحقــــة"]
[]
[null,null,null,"العظمى","بالارقام","بالحــــروف"]
["التربية الإسلامية ",null,null,null,35,"خمسة وثلاثون"]
["العربية لغتي ",null,null,null,28,"ثمانية وعشرون"]
["اللغة الإنجليزية",null,null,null,55,"خمسة وخمسون"]
["الرياضيات",null,null,null,23,"ثلاثة وعشرون"]
["التاريخ",null,null,null,0,""]
["الجغرافيا",null,null,null,0,""]
["التربية الوطنية و المدنية ",null,null,null,0,""]
["الفيزياء",null,null,null,0,""]
["العلوم الحياتية",null,null,null,0,""]
["الكيمياء",null,null,null,0,""]
["علوم الارض و البيئة ",null,null,null,0,""]
["التربية الفنية",null,null,null,0,""]
["التربية الرياضية",null,null,null,0,""]
["الحاسوب المهارات الرقمية ",null,null,null,0,""]
["الثقافة المالية ",null,null,null,0,""]
["اللغة الفرنسية ",null,null,null,0,""]
[null,null,null,null,null,""]
[null,null,null,null,null,""]
[]
[]
[]
["ملحوظات:",null,""]
[]
[null,null,null,null,null,"إسم وتوقيع مربي الصف:"]
[]
["خاتم المدرسة :",null,null,null,null,"إسم وتوقيع مدير المدرسة :"]
[]
["توقيع ولي الأمر:"]
[]
[]
[]
[]
[]
["الإســـم :","يوسف1"]
[]
[]
[]
[]
[]
[5,null,null,"النهاية","العلامــــة المستحقــــة"]
[]
[null,null,null,"العظمى","بالارقام","بالحــــروف"]
["التربية الإسلامية ",null,null,null,45,"خمسة وأربعون"]
["العربية لغتي ",null,null,null,47,"سبعة وأربعون"]
["اللغة الإنجليزية",null,null,null,48,"ثمانية وأربعون"]
["الرياضيات",null,null,null,63,"ثلاثة وستون"]
["التاريخ",null,null,null,0,""]
["الجغرافيا",null,null,null,0,""]
["التربية الوطنية و المدنية ",null,null,null,0,""]
["الفيزياء",null,null,null,0,""]
["العلوم الحياتية",null,null,null,0,""]
["الكيمياء",null,null,null,0,""]
["علوم الارض و البيئة ",null,null,null,0,""]
["التربية الفنية",null,null,null,0,""]
["التربية الرياضية",null,null,null,0,""]
["الحاسوب المهارات الرقمية ",null,null,null,0,""]
["الثقافة المالية ",null,null,null,0,""]
["اللغة الفرنسية ",null,null,null,0,""]
[null,null,null,null,null,""]
[null,null,null,null,null,""]
[]
[]
[]
["ملحوظات:",null,""]
[]
[null,null,null,null,null,"إسم وتوقيع مربي الصف:"]
[]
["خاتم المدرسة :",null,null,null,null,"إسم وتوقيع مدير المدرسة :"]
[]
["توقيع ولي الأمر:"]
[null,null," "]